[Event "32nd Panamerican Youth 2022"]
[Site "Montevideo"]
[Date "2022.06.30"]
[Round "7.16"]
[White "Reifer-Belle, Chanon"]
[Black "Brito Carrascal, Isabela"]
[Result "0-1"]
[ECO "B43"]
[WhiteElo "1213"]
[BlackElo "1487"]
[Annotator "NA RC"]
[PlyCount "106"]
[EventDate "2022.06.26"]
[EventType "swiss"]
[EventCountry "URU"]
[SourceTitle "playchess.com"]
[Source "ChessBase"]
[SourceQuality "1"]
[TimeControl "5400+30"]

1. e4 c5 2. Nf3 e6 3. d4 cxd4 4. Nxd4 a6 5. Nc3 Qc7 6. f4 Bb4 7. Bd2 Nf6 {[%emt 0:08:42]} 8. Bd3 {[%emt 0:11:01]} Bxc3 {[%emt 0:05:07]} 9. bxc3 {[%emt 0:00:34]} d6 {[%emt 0:00:55]} 10. Qe2 {[%emt 0:01:07]} e5 {[%emt 0:06:26]} 11. fxe5 {[%emt 0:03:06]} dxe5 {[%emt 0:00:07]} 12. Nf5 {[%emt 0:02:04]} Bxf5 {[%emt 0:00:19]} 13. exf5 {[%emt 0:00:07]} O-O {[%emt 0:00:45]} 14. O-O {[%emt 0:00:52]} Nbd7 {[%emt 0:00:55]} 15. Qf3 {[%emt 0:13:44]} Rfe8 {[%emt 0:15:30]} 16. Rfe1 {[%emt 0:13:04]} Rac8 {[%emt 0:08:17]} 17. Kh1 {[%emt 0:12:28]} Qc6 {[%emt 0:11:12]} 18. Qxc6 {[%emt 0:01:02]} Rxc6 {[%emt 0:00:05]} 19. Be4 {[%emt 0:00:51]} Rd6 {[%emt 0:01:11]} 20. Rad1 {[%emt 0:02:08]} Nc5 {[%emt 0:00:13]} 21. Bf3 {[%emt 0:03:50]} e4 {[%emt 0:04:32]} 22. Be2 {[%emt 0:00:16]} Na4 {[%emt 0:00:50]} 23. c4 {[%emt 0:08:23]} e3 {[%emt 0:11:07]} 24. Bxe3 {[%emt 0:05:00]} Rxd1 {[%emt 0:09:41]} 25. Bxd1 {[%emt 0:00:14]} Nb2 {[%emt 0:00:07]} 26. Bf3 {[%emt 0:01:41]} Nxc4 {[%emt 0:01:13]} 27. Bf2 {[%emt 0:00:27]} Rxe1+ {[%emt 0:02:42]} 28. Bxe1 {[%emt 0:00:02]} Nd6 {[%emt 0:00:09]} 29. Bc3 {[%emt 0:00:52]} Nfe4 {[%emt 0:01:27]} 30. Be5 {[%emt 0:01:51]} f6 {[%emt 0:01:10]} 31. Bxd6 {[%emt 0:00:34]} Nxd6 {[%emt 0:00:03]} 32. Bd5+ {[%emt 0:00:52]} Kf8 {[%emt 0:00:05]} 33. Kg1 {[%emt 0:00:40]} b5 {[%emt 0:00:47]} 34. g4 {[%emt 0:00:24]} Nf7 {[%emt 0:04:40]} 35. Bxf7 {[%emt 0:03:20]} Kxf7 {[%emt 0:00:04]} 36. Kf2 {[%emt 0:00:30]} Ke7 {[%emt 0:01:14]} 37. Ke3 {[%emt 0:00:22]} Kd6 {[%emt 0:00:32]} 38. Kd4 {[%emt 0:00:24]} a5 {[%emt 0:00:34]} 39. h4 {[%emt 0:01:09]} h6 {[%emt 0:00:14]} 40. a3 {[%emt 0:01:10]} Kc6 {[%emt 0:00:36]} 41. h5 {[%emt 0:00:30]} Kd6 {[%emt 0:00:56]} 42. c4 {[%emt 0:02:34]} Kc6 {[%emt 0:01:33]} 43. cxb5+ {[%emt 0:07:41]} Kxb5 {[%emt 0:00:05]} 44. a4+ {[%emt 0:02:13]} Kxa4 {[%emt 0:00:18]} 45. Kc4 {[%emt 0:00:16]} Ka3 {[%emt 0:00:11]} 46. Kb5 {[%emt 0:01:29]} Kb3 {[%emt 0:00:13]} 47. Kxa5 {[%emt 0:00:11]} Kc4 {[%emt 0:00:08]} 48. Kb6 {[%emt 0:00:12]} Kd5 49. Kc7 Ke4 {[%emt 0:02:29]} 50. Kd7 {[%emt 0:01:38]} Kf4 {[%emt 0:00:11]} 51. Ke7 {[%emt 0:02:51]} Kxg4 {[%emt 0:00:23]} 52. Kf7 {[%emt 0:00:32]} Kxh5 {[%emt 0:00:39]} 53. Kxg7 {[%emt 0:00:30]} Kg5 {[%emt 0:00:30]} 0-1

[Event "32nd Panamerican Youth 2022"]
[Site "Montevideo"]
[Date "2022.06.30"]
[Round "7.17"]
[White "Ticona Rocabado, Licael Roderick"]
[Black "Caceres Benitez, Arturo Eduardo"]
[Result "1/2-1/2"]
[ECO "A06"]
[WhiteElo "2097"]
[BlackElo "1570"]
[Annotator "RC"]
[PlyCount "151"]
[EventDate "2022.06.26"]
[EventType "swiss"]
[EventCountry "URU"]
[SourceTitle "playchess.com"]
[Source "ChessBase"]
[SourceQuality "1"]
[TimeControl "5400+30"]

1. Nf3 d5 2. g3 Nc6 3. d4 Nf6 4. Bg2 Bf5 {[%emt 0:02:51]} 5. O-O {[%emt 0:01:43]} h6 {[%emt 0:02:10]} 6. c3 {[%emt 0:00:29]} e6 {[%emt 0:02:09]} 7. Nbd2 {[%emt 0:00:36]} b5 {[%emt 0:01:18]} 8. Re1 {[%emt 0:00:23]} g5 {[%emt 0:00:39]} 9. Ne5 {[%emt 0:02:11]} Nxe5 {[%emt 0:01:22]} 10. dxe5 {[%emt 0:00:07]} Ne4 {[%emt 0:00:24]} 11. Nb3 {[%emt 0:01:56]} g4 {[%emt 0:06:39]} 12. Nd4 {[%emt 0:01:02]} Bc5 {[%emt 0:04:44]} 13. Be3 {[%emt 0:00:36]} Bg6 {[%emt 0:00:49]} 14. f3 {[%emt 0:01:30]} Ng5 {[%emt 0:03:05]} 15. fxg4 {[%emt 0:01:07]} Be4 {[%emt 0:03:59]} 16. h4 Bxg2 {[%emt 0:00:41]} 17. Kxg2 {[%emt 0:02:34]} Ne4 {[%emt 0:00:21]} 18. Qd3 {[%emt 0:00:25]} Qd7 {[%emt 0:01:16]} 19. Rf1 {[%emt 0:02:48]} Bb6 {[%emt 0:02:48]} 20. Rf4 {[%emt 0:05:01]} c5 {[%emt 0:04:02]} 21. Nc2 {[%emt 0:00:29]} a6 {[%emt 0:01:14]} 22. Raf1 {[%emt 0:00:11]} Rh7 {[%emt 0:01:51]} 23. Kh2 {[%emt 0:01:14]} Rg7 {[%emt 0:02:15]} 24. R4f3 {[%emt 0:00:47]} Rh7 {[%emt 0:01:47]} 25. Rf4 {[%emt 0:13:27]} Rg7 {[%emt 0:00:18]} 26. Rxe4 {[%emt 0:02:46]} dxe4 {[%emt 0:01:12]} 27. Qxe4 {[%emt 0:00:02]} Qd5 {[%emt 0:00:31]} 28. Qxd5 {[%emt 0:00:17]} exd5 {[%emt 0:00:05]} 29. Rf6 {[%emt 0:01:54]} Rg6 {[%emt 0:01:09]} 30. Bxh6 {[%emt 0:00:45]} Bd8 {[%emt 0:00:26]} 31. Rxg6 {[%emt 0:01:43]} fxg6 {[%emt 0:00:03]} 32. Ne1 {[%emt 0:02:32]} Ra7 {[%emt 0:02:13]} 33. Be3 {[%emt 0:00:23]} Re7 {[%emt 0:02:01]} 34. Bxc5 {[%emt 0:02:27]} Rxe5 {[%emt 0:00:04]} 35. e3 {[%emt 0:00:08]} Re4 {[%emt 0:03:17]} 36. Kh3 {[%emt 0:00:30]} Kf7 {[%emt 0:00:52]} 37. Nd3 {[%emt 0:00:59]} a5 {[%emt 0:00:44]} 38. Nf4 {[%emt 0:00:19]} Bc7 {[%emt 0:00:58]} 39. Bd4 {[%emt 0:01:56]} Bxf4 {[%emt 0:00:57]} 40. gxf4 {[%emt 0:00:10]} Kg8 {[%emt 0:00:57]} 41. g5 {[%emt 0:00:27]} Kf7 {[%emt 0:02:00]} 42. Kg4 {[%emt 0:00:10]} Ke6 {[%emt 0:00:22]} 43. h5 {[%emt 0:00:46]} gxh5+ {[%emt 0:00:17]} 44. Kxh5 {[%emt 0:00:06]} Kf5 {[%emt 0:00:06]} 45. g6 Re6 {[%emt 0:00:22]} 46. g7 {[%emt 0:01:40]} Rg6 {[%emt 0:00:36]} 47. Kh4 {[%emt 0:00:35]} a4 {[%emt 0:00:43]} 48. Kh3 {[%emt 0:00:44]} Ke4 {[%emt 0:01:04]} 49. Kh4 {[%emt 0:03:23]} Kf5 {[%emt 0:00:33]} 50. Kh5 {[%emt 0:00:26]} Rg2 {[%emt 0:00:15]} 51. Kh4 {[%emt 0:00:06]} Rg6 {[%emt 0:00:32]} 52. Kh3 {[%emt 0:00:20]} Ke4 {[%emt 0:00:19]} 53. Bf6 {[%emt 0:00:14]} Kf5 {[%emt 0:00:27]} 54. Be5 {[%emt 0:01:49]} Rg4 {[%emt 0:00:48]} 55. b3 {[%emt 0:00:22]} axb3 {[%emt 0:00:06]} 56. axb3 {[%emt 0:00:07]} Rg6 {[%emt 0:00:08]} 57. Bd4 {[%emt 0:00:35]} Ke4 {[%emt 0:00:36]} 58. Bf6 {[%emt 0:00:56]} Kf5 {[%emt 0:00:07]} 59. Be5 {[%emt 0:00:10]} Ke4 {[%emt 0:00:17]} 60. Kh4 {[%emt 0:00:25]} Kf5 {[%emt 0:00:16]} 61. Bd4 {[%emt 0:01:07]} Rg4+ {[%emt 0:00:15]} 62. Kh3 {[%emt 0:01:43]} Rg6 {[%emt 0:00:06]} 63. Be5 {[%emt 0:01:17]} Ke4 {[%emt 0:00:18]} 64. Kh4 {[%emt 0:00:37]} Kf5 {[%emt 0:00:05]} 65. Kh3 {[%emt 0:02:05]} Ke4 {[%emt 0:02:49]} 66. Kh2 {[%emt 0:00:09]} Kf5 {[%emt 0:00:10]} 67. Kh3 {[%emt 0:00:20]} Ke4 {[%emt 0:02:17]} 68. b4 {[%emt 0:00:06]} Kf5 {[%emt 0:00:09]} 69. Kh4 {[%emt 0:00:05]} Rg4+ {[%emt 0:00:08]} 70. Kh5 {[%emt 0:00:05]} Rg2 {[%emt 0:00:11]} 71. Kh4 {[%emt 0:00:05]} Rg4+ {[%emt 0:00:05]} 72. Kh3 {[%emt 0:00:05]} Rg6 {[%emt 0:00:05]} 73. Bd4 {[%emt 0:00:04]} Ke4 {[%emt 0:00:20]} 74. Bf6 {[%emt 0:00:26]} Kf5 {[%emt 0:00:06]} 75. Be5 {[%emt 0:00:05]} Ke4 {[%emt 0:00:26]} 76. Kh2 1/2-1/2

[Event "32nd Panamerican Youth 2022"]
[Site "Montevideo"]
[Date "2022.06.30"]
[Round "7.18"]
[White "Zacarias Rodriguez, Santiago"]
[Black "Sloan, Jed"]
[Result "1-0"]
[ECO "B48"]
[WhiteElo "2069"]
[BlackElo "1974"]
[Annotator "RC"]
[PlyCount "51"]
[EventDate "2022.06.26"]
[EventType "swiss"]
[EventCountry "URU"]
[SourceTitle "playchess.com"]
[Source "ChessBase"]
[SourceQuality "1"]
[TimeControl "5400+30"]

1. e4 c5 2. Nf3 e6 3. d4 cxd4 4. Nxd4 Nc6 5. Nc3 Qc7 6. Be3 a6 7. a3 Nf6 8. f4 {[%emt 0:03:16]} d6 {[%emt 0:06:38]} 9. Be2 {[%emt 0:05:11]} Be7 {[%emt 0:00:53]} 10. O-O {[%emt 0:03:30]} O-O {[%emt 0:01:55]} 11. Kh1 {[%emt 0:02:48]} b5 {[%emt 0:01:03]} 12. Nxc6 {[%emt 0:07:36]} Qxc6 {[%emt 0:00:07]} 13. e5 {[%emt 0:01:07]} dxe5 {[%emt 0:05:47]} 14. fxe5 {[%emt 0:00:05]} Nd5 {[%emt 0:01:25]} 15. Nxd5 {[%emt 0:00:52]} exd5 {[%emt 0:03:37]} 16. Bd4 {[%emt 0:03:17]} Be6 {[%emt 0:13:14]} 17. Bd3 {[%emt 0:00:36]} Qd7 {[%emt 0:04:58]} 18. Qh5 {[%emt 0:02:43]} h6 {[%emt 0:01:26]} 19. Rf6 {[%emt 0:24:35]} Bg4 {[%emt 0:18:05]} 20. Qh4 {[%emt 0:00:03]} Rfd8 {[%emt 0:13:00]} 21. h3 {[%emt 0:13:12]} Be6 {[%emt 0:01:46]} 22. Qg3 {[%emt 0:07:01]} Kh8 {[%emt 0:07:50]} 23. Rxf7 {[%emt 0:01:51]} g5 {[%emt 0:02:39]} 24. Rh7+ {[%emt 0:04:47]} Kg8 {[%emt 0:00:00]} 25. Qf3 {[%emt 0:00:41]} g4 {[%emt 0:03:24]} 26. Qe3 {[%emt 0:01:05]} 1-0

[Event "32nd Panamerican Youth 2022"]
[Site "Montevideo"]
[Date "2022.06.30"]
[Round "7.19"]
[White "Caceres Sandoval, Eduardo"]
[Black "Cabiativa, Juan Esteban"]
[Result "1-0"]
[ECO "B54"]
[WhiteElo "1751"]
[BlackElo "2019"]
[Annotator "RC"]
[PlyCount "131"]
[EventDate "2022.06.26"]
[EventType "swiss"]
[EventCountry "URU"]
[SourceTitle "playchess.com"]
[Source "ChessBase"]
[SourceQuality "1"]
[TimeControl "5400+30"]

1. e4 c5 2. Nf3 d6 {[%emt 0:04:52]} 3. d4 {[%emt 0:00:27]} cxd4 {[%emt 0:00:27]} 4. Nxd4 {[%emt 0:00:10]} Nf6 {[%emt 0:01:28]} 5. f3 {[%emt 0:00:12]} g6 {[%emt 0:02:05]} 6. c4 {[%emt 0:00:10]} Bg7 {[%emt 0:00:33]} 7. Nc3 {[%emt 0:00:07]} O-O {[%emt 0:01:10]} 8. Be3 {[%emt 0:00:12]} Nc6 {[%emt 0:00:50]} 9. Be2 {[%emt 0:00:10]} Bd7 {[%emt 0:01:15]} 10. O-O {[%emt 0:00:26]} Nxd4 {[%emt 0:01:31]} 11. Bxd4 {[%emt 0:00:08]} Bc6 {[%emt 0:00:57]} 12. Qd2 {[%emt 0:00:15]} a5 {[%emt 0:00:28]} 13. b3 {[%emt 0:01:30]} Nd7 {[%emt 0:00:26]} 14. Bf2 {[%emt 0:00:15]} Nc5 {[%emt 0:01:49]} 15. Rab1 {[%emt 0:00:39]} Be5 {[%emt 0:01:56]} 16. a3 {[%emt 0:00:34]} b6 {[%emt 0:13:33]} 17. b4 {[%emt 0:12:39]} axb4 {[%emt 0:00:42]} 18. axb4 {[%emt 0:00:13]} Na4 {[%emt 0:01:36]} 19. Nxa4 {[%emt 0:00:50]} Rxa4 {[%emt 0:00:41]} 20. Bd1 {[%emt 0:01:32]} Ra3 {[%emt 0:04:22]} 21. Bb3 {[%emt 0:02:07]} b5 {[%emt 0:04:30]} 22. Rfc1 {[%emt 0:02:24]} Qb8 {[%emt 0:08:10]} 23. Bd4 {[%emt 0:04:03]} bxc4 {[%emt 0:11:34]} 24. Bxc4 {[%emt 0:01:46]} Bxd4+ {[%emt 0:02:59]} 25. Qxd4 {[%emt 0:00:02]} Bb5 {[%emt 0:00:17]} 26. Qd5 {[%emt 0:08:19]} Qb6+ {[%emt 0:01:46]} 27. Kh1 {[%emt 0:00:28]} Bd7 {[%emt 0:06:54]} 28. b5 {[%emt 0:04:45]} Qf2 {[%emt 0:13:23]} 29. Rf1 {[%emt 0:03:16]} Qb6 {[%emt 0:01:25]} 30. Rfc1 {[%emt 0:01:28]} Raa8 {[%emt 0:05:47]} 31. Qd2 {[%emt 0:01:19]} Rac8 {[%emt 0:05:39]} 32. Qa2 {[%emt 0:08:14]} Ra8 {[%emt 0:01:24]} 33. Qb3 {[%emt 0:00:18]} Kg7 {[%emt 0:00:28]} 34. Bd5 {[%emt 0:00:42]} Ra7 {[%emt 0:00:53]} 35. Bc6 {[%emt 0:06:19]} Be6 {[%emt 0:00:18]} 36. Qb2+ {[%emt 0:00:02]} f6 {[%emt 0:00:28]} 37. Ra1 {[%emt 0:00:07]} Rb8 {[%emt 0:00:28]} 38. Rxa7 {[%emt 0:00:34]} Qxa7 {[%emt 0:00:01]} 39. Qa1 {[%emt 0:00:16]} Qe3 {[%emt 0:00:58]} 40. Qc3 {[%emt 0:01:01]} Qxc3 {[%emt 0:01:23]} 41. Rxc3 {[%emt 0:00:04]} f5 {[%emt 0:00:04]} 42. Kg1 {[%emt 0:01:08]} Kf6 {[%emt 0:00:08]} 43. Kf2 {[%emt 0:00:10]} fxe4 {[%emt 0:00:07]} 44. fxe4 {[%emt 0:00:10]} Ke5 {[%emt 0:00:03]} 45. Ke3 {[%emt 0:00:06]} d5 {[%emt 0:01:09]} 46. Rc5 {[%emt 0:04:03]} Kd6 {[%emt 0:00:05]} 47. Kd4 {[%emt 0:00:04]} dxe4 {[%emt 0:00:06]} 48. Bxe4 {[%emt 0:05:35]} Bd7 {[%emt 0:00:30]} 49. Kc4 {[%emt 0:03:22]} Bc8 {[%emt 0:01:21]} 50. Rd5+ {[%emt 0:00:41]} Kc7 {[%emt 0:00:07]} 51. Kc5 {[%emt 0:01:30]} Bb7 {[%emt 0:00:22]} 52. b6+ {[%emt 0:01:09]} Kc8 {[%emt 0:00:17]} 53. Re5 {[%emt 0:00:02]} Bxe4 {[%emt 0:00:08]} 54. Rxe4 {[%emt 0:00:04]} Rb7 {[%emt 0:00:53]} 55. Ra4 {[%emt 0:07:33]} Kb8 {[%emt 0:02:29]} 56. Kc6 {[%emt 0:00:45]} e5 {[%emt 0:00:22]} 57. Ra7 {[%emt 0:03:11]} Rxa7 {[%emt 0:00:28]} 58. bxa7+ {[%emt 0:00:02]} Kxa7 {[%emt 0:00:07]} 59. Kd5 {[%emt 0:00:04]} Kb7 {[%emt 0:00:23]} 60. Kxe5 {[%emt 0:00:04]} Kc6 {[%emt 0:00:04]} 61. Kf6 {[%emt 0:00:11]} Kd5 {[%emt 0:00:15]} 62. Kg7 {[%emt 0:00:52]} Ke5 {[%emt 0:00:06]} 63. Kxh7 {[%emt 0:00:20]} Kf5 {[%emt 0:00:02]} 64. Kh6 {[%emt 0:00:17]} g5 {[%emt 0:01:03]} 65. Kh5 {[%emt 0:00:14]} g4 {[%emt 0:00:22]} 66. g3 {[%emt 0:00:06]} 1-0

[Event "32nd Panamerican Youth 2022"]
[Site "Montevideo"]
[Date "2022.06.30"]
[Round "7.20"]
[White "Handsztok, Matias"]
[Black "Claure Verastegui, Rene David"]
[Result "1-0"]
[ECO "D43"]
[WhiteElo "1868"]
[BlackElo "1586"]
[Annotator "NA RC"]
[PlyCount "147"]
[EventDate "2022.06.26"]
[EventType "swiss"]
[EventCountry "URU"]
[SourceTitle "playchess.com"]
[Source "ChessBase"]
[SourceQuality "1"]
[TimeControl "5400+30"]

{[%evp 41,146,33,32767,32767,32767,32767,32767,32767,41,32767,32,32767,45,18,0,21,239,298,279,161,165,158,163,157,177,188,265,253,257,191,32767,32767,183,189,32767,191,189,182,194,206,554,690,640,348,359,394,503,166,166,158,466,439,449,508,672,856,665,856,1136,168,599,557,562,516,554,449,32767,32767,32767,32767,431,515,425,394,406,433,32767,32767,32767,32767,32767,32767,32767,32767,32767,32767,32767,32767,32767,32767,32767,32767,32767,32767,5543,32767,5122,32767,29951,29992,29981,32767,32767,32767,32767,32767,29999]} 1. d4 d5 2. c4 c6 3. Nf3 Nf6 4. Nc3 e6 5. Bg5 Be7 6. e3 Nbd7 7. Bd3 O-O {[%emt 0:02:02]} 8. Qc2 {[%emt 0:01:36]} a6 {[%emt 0:00:57]} 9. h3 {[%emt 0:00:26]} dxc4 {[%emt 0:02:53]} 10. Bxc4 {[%emt 0:00:08]} b5 {[%emt 0:00:20]} 11. Bd3 {[%emt 0:00:17]} Bb7 {[%emt 0:00:55]} 12. Rd1 {[%emt 0:01:40]} h6 {[%emt 0:04:51]} 13. Bh4 {[%emt 0:02:15]} Nd5 {[%emt 0:01:25]} 14. Nxd5 {[%emt 0:03:12]} cxd5 {[%emt 0:04:01]} 15. Bxe7 {[%emt 0:00:13]} Qxe7 {[%emt 0:00:03]} 16. Qc7 {[%emt 0:01:04]} Rab8 {[%emt 0:00:43]} 17. O-O {[%emt 0:00:24]} Rfc8 {[%emt 0:01:13]} 18. Qa5 {[%emt 0:00:12]} Qd6 {[%emt 0:04:40]} 19. Rc1 {[%emt 0:00:30]} Nb6 {[%emt 0:05:47]} 20. b3 {[%emt 0:00:37]} Nd7 {[%emt 0:00:36]} 21. a3 {[%emt 0:06:44]} f6 {[%emt 0:07:25]} 22. Bb1 {[%emt 0:03:29]} Rc6 {[%emt 0:01:54]} 23. Rxc6 {[%emt 0:00:58]} Qxc6 {[%emt 0:00:03]} 24. Ne1 {[%emt 0:00:10]} Rc8 {[%emt 0:03:19]} 25. Nd3 {[%emt 0:01:40]} Qc3 {[%emt 0:01:08]} 26. b4 {[%emt 0:00:36]} Qc6 {[%emt 0:03:18]} 27. Nc5 {[%emt 0:04:27]} Nb6 $1 {[%emt 0:03:00]} 28. Bd3 {[%emt 0:00:21]} Na8 $2 {[%emt 0:11:04] [#]} (28... Nc4 $11 29. Bxc4 dxc4) 29. a4 $1 {[%emt 0:00:35]} Nc7 {[%emt 0:02:24]} 30. axb5 {[%emt 0:01:48]} axb5 {[%emt 0:00:09]} 31. Qa7 {[%emt 0:00:23]} Ba6 {[%emt 0:09:31]} 32. Nxa6 {[%emt 0:03:08]} Nxa6 {[%emt 0:01:12] [#]} 33. Ra1 $1 {[%emt 0:03:03]} Nc7 {[%emt 0:01:30]} (33... Nb8 $142 34. g4 (34. Bg6 Qc7 $16) 34... Qe8) 34. Qc5 {[%emt 0:00:29]} Qxc5 {[%emt 0:00:25]} 35. bxc5 {[%emt 0:00:07]} Kf7 {[%emt 0:01:37]} 36. Ra7 {[%emt 0:00:08]} Ke8 {[%emt 0:00:41]} 37. Rb7 {[%emt 0:00:12]} Kd8 {[%emt 0:00:46]} 38. Bxb5 {[%emt 0:00:34]} Ra8 {[%emt 0:02:50]} 39. Rb6 {[%emt 0:00:38]} Ra1+ {[%emt 0:02:35]} 40. Kh2 {[%emt 0:00:07]} e5 $2 {[%emt 0:00:47]} (40... Nxb5 {is more resistant.} 41. Rxb5 Ra7) 41. Rd6+ {[%emt 0:00:18]} Kc8 {[%emt 0:00:03]} 42. Bc6 {[%emt 0:00:13]} Ra6 {[%emt 0:01:11]} 43. Kg3 {[%emt 0:00:45]} Ra3 {[%emt 0:00:37]} 44. f3 $2 {[%emt 0:01:10]} (44. Bd7+ Kb8 45. Rb6+ Ka7 46. Bc6) 44... Rxe3 {[%emt 0:01:31]} 45. Bd7+ {[%emt 0:00:33]} Kd8 $2 {[%emt 0:00:51]} (45... Kb8) 46. Bf5+ {[%emt 0:00:26]} Ke8 {[%emt 0:00:32] [#]} 47. c6 $1 {[%emt 0:00:19]} Na6 {[%emt 0:03:58]} 48. Bg6+ {[%emt 0:01:31]} Ke7 {[%emt 0:00:33]} 49. Rd7+ {[%emt 0:00:23]} Ke6 {[%emt 0:00:01]} 50. Bf7+ $2 {[%emt 0:05:06]} (50. Kf2 Nb4 51. Bf7+ Kf5 52. Kxe3 Nxc6 53. Bxd5 exd4+ 54. Kd2) 50... Kf5 {[%emt 0:00:17]} 51. Bxd5 {[%emt 0:00:33]} exd4 {[%emt 0:02:09]} 52. Ra7 {[%emt 0:00:12]} Ke5 {[%emt 0:01:53]} 53. Bc4 {[%emt 0:01:12]} ({Inferior is} 53. Rxa6 Kxd5 54. c7 Rc3 55. Ra5+ Ke6 $11) 53... Rc3 {[%emt 0:01:38]} 54. Bxa6 {[%emt 0:00:09]} Rxc6 {[%emt 0:00:01]} 55. Bd3 {[%emt 0:00:10]} Rc3 {[%emt 0:00:16]} 56. Ra5+ {[%emt 0:00:22]} Ke6 {[%emt 0:01:14]} 57. Bf5+ {[%emt 0:00:09]} Kd6 {[%emt 0:00:20]} 58. Be4 {[%emt 0:00:05]} Ke6 {[%emt 0:01:06]} 59. Rd5 {[%emt 0:01:24]} Rc4 {[%emt 0:00:23]} 60. Rd8 {[%emt 0:00:34]} Rb4 {[%emt 0:00:30]} 61. Bd3 {[%emt 0:04:10]} Ke7 {[%emt 0:00:37]} 62. Rd5 {[%emt 0:00:06]} Ke6 {[%emt 0:00:18]} 63. Rb5 {[%emt 0:00:05]} Ra4 {[%emt 0:00:15]} 64. Kf4 {[%emt 0:00:17]} Ke7 {[%emt 0:02:54]} 65. Ke4 {[%emt 0:02:01]} Ra2 {[%emt 0:00:02]} 66. g4 {[%emt 0:00:11]} Rh2 {[%emt 0:00:43]} 67. Rb7+ {[%emt 0:00:21]} Kf8 {[%emt 0:00:22]} 68. Kf5 {[%emt 0:02:48]} Rxh3 {[%emt 0:02:12]} 69. Be4 {[%emt 0:00:26]} h5 {[%emt 0:01:34]} 70. Ke6 {[%emt 0:00:20]} g5 {[%emt 0:02:04]} 71. Kxf6 {[%emt 0:00:08]} Ke8 {[%emt 0:00:55]} 72. gxh5 {[%emt 0:00:20]} d3 {[%emt 0:01:15]} 73. Bf5 {[%emt 0:00:06]} Rxf3 {[%emt 0:00:39]} 74. Rb8# {[%emt 0:00:07]} 1-0

[Event "32nd Panamerican Youth 2022"]
[Site "Montevideo"]
[Date "2022.07.01"]
[Round "8.9"]
[White "Tang, Benjamin"]
[Black "Fiorito, Francisco"]
[Result "0-1"]
[ECO "B38"]
[WhiteElo "1707"]
[BlackElo "2268"]
[Annotator "RC"]
[PlyCount "64"]
[EventDate "2022.06.26"]
[EventType "swiss"]
[EventCountry "URU"]
[SourceTitle "playchess.com"]
[Source "ChessBase"]
[SourceQuality "1"]
[TimeControl "5400+30"]

1. e4 {[%emt 0:00:02]} c5 {[%emt 0:00:06]} 2. Nf3 {[%emt 0:00:08]} Nc6 {[%emt 0:00:05]} 3. d4 {[%emt 0:00:13]} cxd4 {[%emt 0:00:06]} 4. Nxd4 {[%emt 0:00:05]} g6 {[%emt 0:00:04]} 5. c4 {[%emt 0:00:30]} Bg7 {[%emt 0:00:07]} 6. Be3 {[%emt 0:00:19]} Nf6 {[%emt 0:00:06]} 7. Nc3 {[%emt 0:00:43]} d6 {[%emt 0:00:11]} 8. Be2 {[%emt 0:01:49]} O-O {[%emt 0:00:06]} 9. O-O {[%emt 0:00:35]} Bd7 {[%emt 0:00:03]} 10. h3 {[%emt 0:01:50]} Nxd4 {[%emt 0:00:04]} 11. Bxd4 {[%emt 0:00:20]} Bc6 {[%emt 0:00:04]} 12. Qc2 {[%emt 0:02:06]} a5 {[%emt 0:00:08]} 13. b3 {[%emt 0:02:42]} Nd7 {[%emt 0:02:29]} 14. Bxg7 {[%emt 0:01:00]} Kxg7 {[%emt 0:00:05]} 15. Rad1 {[%emt 0:01:14]} Qb6 {[%emt 0:04:59]} 16. Nd5 {[%emt 0:01:59]} Bxd5 {[%emt 0:01:10]} 17. exd5 {[%emt 0:00:01]} Nc5 {[%emt 0:02:37]} 18. Qb2+ {[%emt 0:01:20]} Kg8 {[%emt 0:00:24]} 19. Rd4 {[%emt 0:01:57]} Qb4 {[%emt 0:09:20]} 20. Rb1 {[%emt 0:04:44]} f5 {[%emt 0:10:26]} 21. Bf3 {[%emt 0:11:29]} Nd7 {[%emt 0:04:11]} 22. Be2 {[%emt 0:25:49]} Nc5 {[%emt 0:05:35]} 23. h4 {[%emt 0:07:00]} Rf6 {[%emt 0:03:16]} 24. h5 {[%emt 0:03:44]} g5 {[%emt 0:04:25]} 25. Qc1 {[%emt 0:13:53]} h6 {[%emt 0:02:44]} 26. Qc2 {[%emt 0:01:23]} Qb6 {[%emt 0:06:11]} 27. Rdd1 {[%emt 0:01:39]} Raf8 {[%emt 0:00:57]} 28. Bd3 {[%emt 0:01:01]} Nd7 {[%emt 0:01:05]} 29. Re1 {[%emt 0:01:10]} Ne5 {[%emt 0:02:48]} 30. Re2 {[%emt 0:04:11]} Qd4 {[%emt 0:00:16]} 31. Rd1 {[%emt 0:01:46]} Qg4 {[%emt 0:02:15]} 32. Rde1 {[%emt 0:01:26]} Nf3+ {[%emt 0:00:28]} 0-1